bitfinex/quotes_BTCUSD_20250809
["timestamp","ask_amount","ask_price","bid_price","bid_amount"]
[1754778637492,0.21766931,116750.0,116740.0,0.0001418]
[1754778637716,0.21766931,116750.0,116740.0,0.31705697]
[1754778638141,0.21766931,116750.0,116740.0,0.0001418]
[1754778638365,0.21766931,116750.0,116740.0,0.31705697]
[1754778639281,0.21766931,116750.0,116740.0,0.0001418]
[1754778639630,0.21766931,116750.0,116740.0,0.31705697]
[1754778640453,0.21766931,116750.0,116740.0,0.0001418]
[1754778640666,0.21766931,116750.0,116740.0,0.31705697]
[1754778641035,0.21766931,116750.0,116740.0,0.0001418]
[1754778641506,0.21766931,116750.0,116740.0,0.31705697]
[1754778642672,0.21766931,116750.0,116740.0,0.0001418]
[1754778643082,0.21766931,116750.0,116740.0,0.31705697]
[1754778643685,0.21766931,116750.0,116740.0,0.0001418]
[1754778643899,0.21766931,116750.0,116740.0,0.31705697]
[1754778644884,0.21766931,116750.0,116740.0,0.0001418]
[1754778645057,0.21766931,116750.0,116740.0,0.31705697]
[1754778645529,0.21266931,116750.0,116740.0,0.68734105]
[1754778645750,0.21266931,116750.0,116740.0,0.83293534]
[1754778648174,0.21266931,116750.0,116740.0,0.51602017]
[1754778648431,0.21266931,116750.0,116740.0,0.46686697]
[1754778648651,0.21266931,116750.0,116740.0,0.1499518]
[1754778648873,0.21266931,116750.0,116740.0,0.46686697]
[1754778649547,0.21266931,116750.0,116740.0,0.1499518]
[1754778649759,0.21266931,116750.0,116740.0,0.49899565]
[1754778650425,0.21266931,116750.0,116740.0,0.1499518]
[1754778650656,0.21266931,116750.0,116740.0,0.46686697]
[1754778650899,0.21266931,116750.0,116740.0,0.1499518]
[1754778651101,0.21266931,116750.0,116740.0,0.46686697]
[1754778651970,0.21266931,116750.0,116740.0,0.1499518]
[1754778652206,0.21266931,116750.0,116740.0,0.46686697]
[1754778652427,0.21466931,116750.0,116740.0,0.46686697]
[1754778652881,0.21466931,116750.0,116740.0,0.1499518]
[1754778653122,0.21466931,116750.0,116740.0,0.46686697]
[1754778653332,0.21466931,116750.0,116740.0,0.1499518]
[1754778653570,0.27060059,116750.0,116740.0,0.31904697]
[1754778653989,0.21466931,116750.0,116740.0,0.31904697]
[1754778655314,0.21466931,116750.0,116740.0,0.0021318]
[1754778655541,0.21466931,116750.0,116740.0,0.31904697]
[1754778656001,0.21466931,116750.0,116740.0,0.0021318]
[1754778656215,0.21466931,116750.0,116740.0,0.31904697]
[1754778657447,0.21466931,116750.0,116740.0,0.0021318]
[1754778657608,0.21466931,116750.0,116740.0,0.31904697]
[1754778658181,0.21761931,116750.0,116740.0,0.0001418]
[1754778658388,0.27355059,116750.0,116740.0,0.0001418]
[1754778658821,0.21761931,116750.0,116740.0,0.0001418]
[1754778659796,0.24334331,116750.0,116740.0,0.0001418]
[1754778660644,0.58334331,116750.0,116740.0,0.0001418]
[1754778660857,0.60079233,116750.0,116740.0,0.0001418]
[1754778661755,0.60179233,116750.0,116740.0,0.0001418]
[1754778661944,0.69058658,116750.0,116740.0,0.0001418]
[1754778662192,0.68958658,116750.0,116740.0,0.0001418]
[1754778662669,0.69158658,116750.0,116740.0,0.0001418]
[1754778664309,0.71466658,116750.0,116740.0,0.0001418]
[1754778665023,0.71266658,116750.0,116740.0,0.0001418]
[1754778665522,0.71566658,116750.0,116740.0,0.0001418]
[1754778665760,0.71366658,116750.0,116740.0,0.0001418]
[1754778665981,0.71566658,116750.0,116740.0,0.0001418]
[1754778666210,0.71966658,116750.0,116740.0,0.0001418]
[1754778670069,1.15816658,116750.0,116740.0,0.0001418]
[1754778671093,1.13508658,116750.0,116740.0,0.0001418]
[1754778671293,0.69658658,116750.0,116740.0,0.0001418]
[1754778678278,0.69658658,116750.0,116720.0,0.0031]
[1754778678484,0.17137065,116720.0,116710.0,0.00301]
[1754778678688,0.44674959,116720.0,116710.0,0.00508]
[1754778678910,0.4553171,116720.0,116710.0,0.00508]
[1754778679454,0.26680027,116720.0,116710.0,0.42800899]
[1754778679665,0.08686211,116720.0,116710.0,0.42800899]
[1754778679871,0.25821234,116720.0,116710.0,0.02881]
[1754778680273,0.25821234,116720.0,116710.0,0.45173899]
[1754778680874,0.25821234,116720.0,116710.0,0.62310391]
[1754778681085,0.25821234,116720.0,116710.0,0.20017492]
[1754778681722,0.25821234,116720.0,116710.0,0.02881]
[1754778681931,0.31591913,116720.0,116710.0,0.02881]
[1754778682977,0.34164713,116720.0,116710.0,0.00508]
[1754778683199,0.28394034,116720.0,116710.0,0.00508]
[1754778684960,0.28394034,116720.0,116710.0,0.17644492]
[1754778690061,0.28394034,116720.0,116710.0,0.00508]
[1754778692480,0.28610034,116720.0,116710.0,0.00207]
[1754778693213,0.34689793,116720.0,116710.0,0.00207]
[1754778697220,0.1713796,116700.0,116690.0,0.18297199]
[1754778697432,0.3172996,116700.0,116690.0,0.01364971]
[1754778698277,0.3172996,116700.0,116690.0,0.185044]
[1754778698490,0.3172996,116700.0,116690.0,0.19051696]
[1754778706298,0.3172996,116700.0,116690.0,0.61344595]
[1754778707846,0.3172996,116700.0,116690.0,0.19051696]
[1754778708109,0.3172996,116700.0,116690.0,0.61344595]
[1754778711628,0.3172996,116700.0,116690.0,0.19051696]
[1754778711851,0.3172996,116700.0,116690.0,0.61344595]
[1754778712525,0.3172996,116700.0,116690.0,0.19051696]
[1754778718736,0.3172996,116700.0,116690.0,0.50780075]
[1754778720512,0.14592,116700.0,116690.0,0.50780075]
[1754778720797,0.025731,116710.0,116700.0,0.1713796]
[1754778721045,0.17991774,116720.0,116710.0,0.17136492]
[1754778721226,0.43726885,116720.0,116710.0,0.00528]
[1754778721439,0.43726885,116720.0,116710.0,0.32256379]
[1754778721833,0.43924885,116720.0,116710.0,0.00528]
[1754778722790,0.25735111,116720.0,116710.0,0.59952731]
[1754778722996,0.42870134,116720.0,116710.0,0.59952731]
[1754778723201,0.42870134,116720.0,116710.0,0.17664492]
[1754778723407,0.40297234,116720.0,116710.0,0.17664492]
[1754778726462,0.40297234,116720.0,116710.0,0.00528]
[1754778728579,0.40297234,116720.0,116710.0,0.17664492]
[1754778729875,0.40495234,116720.0,116710.0,0.17664492]
[1754778730764,0.40495234,116720.0,116710.0,0.00528]
[1754778730977,0.40495234,116720.0,116710.0,0.00215]
[1754778738687,0.17136492,116710.0,116700.0,0.59739199]
[1754778738895,0.17136492,116710.0,116700.0,0.1765596]
[1754778740870,0.1713796,116700.0,116690.0,0.28760918]
[1754778741079,0.3180896,116700.0,116690.0,0.00047296]
[1754778741293,0.3211796,116700.0,116690.0,0.00047296]
[1754778741521,0.3211796,116700.0,116690.0,0.17186725]
[1754778741987,0.3180896,116700.0,116690.0,0.17391725]
[1754778742203,0.3180896,116700.0,116690.0,0.17691725]
[1754778742431,0.3180896,116700.0,116690.0,0.17891725]
[1754778743095,0.3180896,116700.0,116690.0,0.18202725]
[1754778743843,0.14464,116700.0,116690.0,0.60490964]
[1754778744485,0.25822703,116710.0,116700.0,0.1713796]
[1754778744698,0.40489703,116710.0,116700.0,0.1734296]
[1754778745345,0.40489703,116710.0,116700.0,0.00205]
[1754778745561,0.40489703,116710.0,116700.0,0.00305]
[1754778745771,0.40489703,116710.0,116700.0,0.00505]
[1754778750551,0.40489703,116710.0,116700.0,0.49368205]
[1754778750773,0.40489703,116710.0,116700.0,0.1764296]
[1754778750988,0.40489703,116710.0,116700.0,0.00505]
[1754778751196,0.40489703,116710.0,116700.0,0.1764296]
[1754778751835,0.40489703,116710.0,116700.0,0.49368205]
[1754778752522,0.40489703,116710.0,116700.0,0.1764296]
[1754778755526,0.46626051,116710.0,116700.0,0.00505]
[1754778755742,0.46935051,116710.0,116700.0,0.00505]
[1754778755955,0.46935051,116710.0,116700.0,0.003]
[1754778757600,0.40798703,116710.0,116700.0,0.003]
[1754778758059,0.40798703,116710.0,116700.0,0.1743796]
[1754778758691,0.43371703,116710.0,116700.0,0.1743796]
[1754778758935,0.43371703,116710.0,116700.0,0.003]
[1754778770958,0.28911703,116710.0,116700.0,0.003]
[1754778771172,0.43347703,116710.0,116700.0,0.003]
[1754778771775,0.49481651,116710.0,116700.0,0.003]
[1754778774519,0.35045651,116710.0,116700.0,0.003]
[1754778774707,0.49477651,116710.0,116700.0,0.003]
[1754778776184,0.49473651,116710.0,116700.0,0.003]
[1754778776470,0.35045651,116710.0,116700.0,0.003]
[1754778776690,0.49473651,116710.0,116700.0,0.003]
[1754778777242,0.35045651,116710.0,116700.0,0.003]
[1754778777445,0.49473651,116710.0,116700.0,0.003]
[1754778779464,0.49469651,116710.0,116700.0,0.003]
[1754778779685,0.43335703,116710.0,116700.0,0.003]
[1754778786161,0.43335703,116710.0,116700.0,0.002]
[1754778786594,0.1713796,116700.0,116690.0,0.00047296]
[1754778786818,0.26032171,116700.0,116690.0,0.00047296]
[1754778787308,0.26345171,116700.0,116690.0,0.00047296]
[1754778787749,0.32403037,116700.0,116690.0,0.00047296]
[1754778787971,0.26032171,116700.0,116690.0,0.00251296]
[1754778789557,0.26345171,116700.0,116690.0,0.00047296]
[1754778790235,0.28918471,116700.0,116690.0,0.00047296]
[1754778792069,0.29853603,116700.0,116690.0,0.00047296]
[1754778792286,0.36095013,116700.0,116690.0,0.00047296]
[1754778801903,0.50487013,116700.0,116690.0,0.00047296]
[1754778803444,0.44345603,116700.0,116690.0,0.00047296]
[1754778816783,0.29953603,116700.0,116690.0,0.00047296]
[1754778817011,0.44325603,116700.0,116690.0,0.00047296]
[1754778818140,0.44012603,116700.0,116690.0,0.00258296]
[1754778818366,0.44012603,116700.0,116690.0,0.00582296]
[1754778818827,0.50158413,116700.0,116690.0,0.00258296]
[1754778820748,0.50467413,116700.0,116690.0,0.00047296]
[1754778820962,0.50158413,116700.0,116690.0,0.00047296]
[1754778824479,0.50158413,116700.0,116690.0,0.00258296]
[1754778824655,0.49950413,116700.0,116690.0,0.00582296]
[1754778825056,0.50167413,116700.0,116690.0,0.00582296]
[1754778825661,0.50167413,116700.0,116690.0,0.00258296]
[1754778832119,0.50472413,116700.0,116690.0,0.00047296]
[1754778841777,0.44326603,116700.0,116690.0,0.00047296]
[1754778887168,0.29954603,116700.0,116690.0,0.00047296]
[1754778887422,0.43901603,116700.0,116690.0,0.00242296]
[1754778890755,0.43893603,116700.0,116690.0,0.00242296]
[1754778892664,0.43893603,116700.0,116690.0,0.00047296]
[1754778892665,0.44198603,116700.0,116690.0,0.00047296]
[1754778893907,0.50332112,116700.0,116690.0,0.00047296]
[1754778910688,0.49778112,116700.0,116690.0,0.00542296]
[1754778910916,0.43640603,116700.0,116690.0,0.32267541]
[1754778911135,0.42805471,116700.0,116690.0,0.32267541]
[1754778911785,0.42805471,116700.0,116690.0,0.00542296]
[1754778928473,0.43009471,116700.0,116690.0,0.00542296]
[1754778928702,0.49142064,116700.0,116690.0,0.00542296]
[1754778929553,0.43009471,116700.0,116690.0,0.00542296]
[1754778931738,0.28801471,116700.0,116690.0,0.00542296]
[1754778931973,0.42973471,116700.0,116690.0,0.00542296]
[1754778936120,0.42973471,116700.0,116690.0,0.00242296]
[1754778945509,0.11459511,116700.0,116690.0,0.31967541]
[1754778945726,0.14344,116700.0,116690.0,0.4942497]
[1754778945944,0.3148196,116700.0,116690.0,0.4942497]
[1754778947648,0.3148196,116700.0,116690.0,0.17699725]
[1754778947830,0.3148196,116700.0,116690.0,0.4942497]
[1754778955645,0.3148196,116700.0,116690.0,0.00560296]
[1754778955857,0.3148196,116700.0,116690.0,0.32285541]
[1754778956374,0.3148196,116700.0,116690.0,0.00560296]
[1754778957548,0.3169696,116700.0,116690.0,0.00560296]
[1754778959402,0.3169696,116700.0,116690.0,0.32285541]
[1754778959824,0.3169696,116700.0,116690.0,0.00560296]
[1754778959949,0.3169696,116700.0,116690.0,0.32285541]
[1754778960774,0.3169696,116700.0,116690.0,0.00560296]
[1754778961793,0.3169696,116700.0,116690.0,0.00242296]
[1754778962950,0.45849426,116700.0,116690.0,0.00047296]
[1754778970100,0.86590328,116700.0,116690.0,0.00047296]
[1754778975962,0.84168328,116700.0,116690.0,0.00047296]
[1754778977057,0.70024328,116700.0,116690.0,0.00047296]
[1754778977280,0.78946073,116700.0,116690.0,0.00047296]
[1754778987210,0.78650073,116700.0,116690.0,0.00242296]
[1754778987426,0.78646073,116700.0,116690.0,0.00047296]
[1754778987637,0.78946073,116700.0,116690.0,0.00047296]
[1754778988969,0.78646073,116700.0,116690.0,0.00047296]
[1754778989426,0.87625498,116700.0,116690.0,0.00047296]
[1754779018227,0.87525498,116700.0,116690.0,0.00047296]
[1754779018430,0.87625498,116700.0,116690.0,0.00047296]
[1754779018864,0.87825498,116700.0,116690.0,0.00047296]
[1754779023616,0.87825498,116700.0,116690.0,1e-08]
[1754779026532,0.95172498,116700.0,116690.0,1e-08]
[1754779026742,0.99144108,116700.0,116690.0,1e-08]
[1754779026948,1.00994704,116700.0,116690.0,1e-08]
[1754779027381,1.00794704,116700.0,116690.0,1e-08]
[1754779027602,0.97223083,116700.0,116690.0,1e-08]
[1754779028025,0.96823083,116700.0,116690.0,1e-08]
[1754779028232,1.40673083,116700.0,116690.0,1e-08]
[1754779028442,2.10322498,116700.0,116690.0,1e-08]
[1754779028647,1.40322498,116700.0,116690.0,1e-08]
[1754779028857,1.37822498,116700.0,116690.0,1e-08]
[1754779029066,1.38003498,116700.0,116690.0,1e-08]
[1754779029271,1.37803498,116700.0,116690.0,1e-08]
[1754779029482,2.09703498,116700.0,116690.0,1e-08]
[1754779030119,1.39703498,116700.0,116690.0,1e-08]
[1754779033984,0.95853498,116700.0,116690.0,1e-08]
[1754779038923,0.81733498,116700.0,116690.0,1e-08]
[1754779039128,0.96069498,116700.0,116690.0,1e-08]
[1754779043608,0.95805498,116700.0,116690.0,0.00518001]
[1754779043843,0.90586498,116700.0,116690.0,0.00518001]
[1754779044028,0.81907073,116700.0,116690.0,0.00518001]
[1754779044599,0.81911073,116700.0,116690.0,0.00518001]
[1754779045877,0.65643073,116700.0,116690.0,0.00518]
[1754779046088,0.78563073,116700.0,116690.0,0.00518]
[1754779046307,0.79563073,116700.0,116690.0,0.00618]
[1754779046528,0.73822498,116700.0,116690.0,0.00618]
[1754779046749,0.79559073,116700.0,116690.0,0.00618]
[1754779046963,0.43814171,116700.0,116690.0,0.00618]
[1754779047451,0.76814171,116700.0,116690.0,0.00518]
[1754779047688,0.77214171,116700.0,116690.0,0.00618]
[1754779047900,0.85893596,116700.0,116690.0,0.00618]
[1754779048604,0.86493596,116700.0,116690.0,0.00718]
[1754779049023,0.86093596,116700.0,116690.0,0.00618]
[1754779049207,0.86293596,116700.0,116690.0,0.00618]
[1754779049664,0.85693596,116700.0,116690.0,0.00518]
[1754779050095,0.77314171,116700.0,116690.0,0.00518]
[1754779057411,0.62898171,116700.0,116690.0,0.00518]
[1754779057629,0.41056171,116700.0,116690.0,0.00518]
[1754779057838,0.41056171,116700.0,116690.0,0.32280284]
[1754779058066,0.41056171,116700.0,116690.0,0.00518]
[1754779058325,0.47132777,116700.0,116690.0,0.00518]
[1754779058529,0.41056171,116700.0,116690.0,0.00518]
[1754779058744,0.40856171,116700.0,116690.0,0.00518]
[1754779059168,0.40956171,116700.0,116690.0,0.00518]
[1754779059591,0.40656171,116700.0,116690.0,0.00518]
[1754779059814,0.23718211,116700.0,116690.0,0.17657429]
[1754779060456,0.40856171,116700.0,116690.0,0.17657429]
[1754779061759,0.23718211,116700.0,116690.0,0.17657429]
[1754779062858,0.40856171,116700.0,116690.0,0.17657429]
[1754779063070,0.08986211,116700.0,116690.0,0.17657429]
[1754779064320,0.26124171,116700.0,116690.0,0.17657429]
[1754779065368,0.08986211,116700.0,116690.0,0.17657429]
[1754779072856,0.003,116700.0,116690.0,0.17657429]
[1754779073329,0.003,116700.0,116690.0,0.49419713]
[1754779073542,0.003,116700.0,116690.0,0.17657429]
[1754779074504,0.003,116700.0,116690.0,0.49419713]
[1754779076178,0.1743796,116700.0,116690.0,0.17657429]
[1754779076422,0.03757464,116700.0,116690.0,0.17657429]
[1754779076889,0.003,116700.0,116690.0,0.17657429]
[1754779078360,0.003,116700.0,116690.0,0.32533429]
[1754779082509,0.003,116700.0,116690.0,0.64295713]
[1754779083593,0.003,116700.0,116690.0,0.32533429]
[1754779094423,0.003,116700.0,116690.0,0.64295713]
[1754779094642,0.003,116700.0,116690.0,0.32533429]
[1754779095577,0.003,116700.0,116690.0,0.64295713]
[1754779095772,0.1763896,116700.0,116690.0,0.32216429]
[1754779096088,0.1794796,116700.0,116690.0,0.32015429]
[1754779096296,0.1763896,116700.0,116690.0,0.00201]
[1754779096499,0.17139429,116690.0,116680.0,0.02911171]
[1754779096701,0.17340429,116690.0,116680.0,0.03116899]
[1754779097105,0.17340429,116690.0,116680.0,0.02621899]
[1754779097303,0.17651429,116690.0,116680.0,0.02621899]
[1754779097574,0.23850235,116690.0,116680.0,0.02621899]
[1754779097994,0.23539235,116690.0,116680.0,0.02621899]
[1754779098202,0.23539235,116690.0,116680.0,0.02827899]
[1754779099072,0.17340429,116690.0,116680.0,0.02827899]
[1754779100320,0.2633764,116690.0,116680.0,4.728e-05]
[1754779106120,0.27209516,116690.0,116680.0,4.728e-05]
[1754779106470,0.2633764,116690.0,116680.0,4.728e-05]
[1754779110133,0.27190181,116690.0,116680.0,4.728e-05]
[1754779110335,0.33701572,116690.0,116680.0,4.728e-05]
[1754779110739,0.32849031,116690.0,116680.0,4.728e-05]
[1754779110967,0.32538031,116690.0,116680.0,4.728e-05]
[1754779111165,0.32538031,116690.0,116680.0,0.00210728]
[1754779111368,0.17139429,116690.0,116680.0,0.32282012]
[1754779111569,0.17139429,116690.0,116680.0,0.00519728]
[1754779111830,0.17139429,116690.0,116680.0,0.4942291]
[1754779112217,0.17139429,116690.0,116680.0,0.17660626]
[1754779112821,0.17139429,116690.0,116680.0,0.20245134]
[1754779114267,0.21175344,116690.0,116680.0,0.20245134]
[1754779116642,0.17139429,116690.0,116680.0,0.20245134]
[1754779122280,0.31647429,116690.0,116680.0,0.20245134]
[1754779124034,0.31647429,116690.0,116680.0,0.03104236]
[1754779124254,0.31855429,116690.0,116680.0,0.03104236]
[1754779124892,0.31855429,116690.0,116680.0,0.34840464]
[1754779125117,0.37394044,116690.0,116680.0,0.34840464]
[1754779125343,0.37394044,116690.0,116680.0,0.03104236]
[1754779125766,0.37394044,116690.0,116680.0,0.02795236]
[1754779130138,0.37290044,116690.0,116680.0,0.02795236]
[1754779130563,0.17347429,116690.0,116680.0,0.02795236]
[1754779130765,0.31751429,116690.0,116680.0,0.02795236]
[1754779132888,0.31751429,116690.0,116680.0,0.34531464]
[1754779133297,0.31751429,116690.0,116680.0,0.02795236]
[1754779135481,0.31751429,116690.0,116680.0,0.34531464]
[1754779135697,0.37279644,116690.0,116680.0,0.34531464]
[1754779136511,0.37279644,116690.0,116680.0,0.02795236]
[1754779136712,0.37279644,116690.0,116680.0,0.34531464]
[1754779136915,0.37279644,116690.0,116680.0,0.02795236]
[1754779141002,0.37279644,116690.0,116680.0,0.34531464]
[1754779141228,0.31751429,116690.0,116680.0,0.34531464]
[1754779141436,0.31751429,116690.0,116680.0,0.02795236]
[1754779142725,0.31751429,116690.0,116680.0,0.34531464]
[1754779144043,0.31751429,116690.0,116680.0,0.02795236]
[1754779144261,0.31751429,116690.0,116680.0,0.34531464]
[1754779144873,0.37279644,116690.0,116680.0,0.02795236]
[1754779146179,0.31751429,116690.0,116680.0,0.02795236]
[1754779153409,0.32055429,116690.0,116680.0,0.02795236]
[1754779155588,0.31751429,116690.0,116680.0,0.02795236]
[1754779156199,0.31751429,116690.0,116680.0,0.03096236]
[1754779156944,0.31751429,116690.0,116680.0,0.34531464]
[1754779157367,0.31751429,116690.0,116680.0,0.34833464]
[1754779159726,0.31751429,116690.0,116680.0,0.03097236]
[1754779160160,0.31751429,116690.0,116680.0,0.34833464]
[1754779160378,0.17347429,116690.0,116680.0,0.34833464]
[1754779160634,0.31543429,116690.0,116680.0,0.34833464]
[1754779161923,0.31335429,116690.0,116680.0,0.34833464]
[1754779162155,0.31335429,116690.0,116680.0,0.51974362]
[1754779163803,0.31335429,116690.0,116680.0,0.20238134]
[1754779164030,0.31335429,116690.0,116680.0,0.51974362]
[1754779170128,0.36464598,116690.0,116680.0,0.34833464]
[1754779170603,0.36675598,116690.0,116680.0,0.34833464]
[1754779171918,0.31546429,116690.0,116680.0,0.34531464]
[1754779172124,0.31546429,116690.0,116680.0,0.02795236]
[1754779172338,0.31546429,116690.0,116680.0,0.34531464]
[1754779172545,0.31546429,116690.0,116680.0,0.02795236]
[1754779172733,0.31546429,116690.0,116680.0,0.34531464]
[1754779173841,0.31546429,116690.0,116680.0,0.02795236]
[1754779174059,0.36696698,116690.0,116680.0,0.02795236]
[1754779174506,0.36696698,116690.0,116680.0,0.34531464]
[1754779174924,0.31546429,116690.0,116680.0,0.34531464]
[1754779175148,0.31546429,116690.0,116680.0,0.51672362]
[1754779176035,0.31546429,116690.0,116680.0,0.19936134]
[1754779176249,0.31546429,116690.0,116680.0,0.34531464]
[1754779176438,0.7452664,116690.0,116680.0,4.728e-05]
[1754779176690,0.88078065,116690.0,116680.0,4.728e-05]
[1754779178531,0.88178065,116690.0,116680.0,4.728e-05]
[1754779178946,0.88378065,116690.0,116680.0,4.728e-05]
[1754779179370,0.88578065,116690.0,116680.0,4.728e-05]
[1754779182373,0.86280065,116690.0,116680.0,4.728e-05]
[1754779200852,0.72084065,116690.0,116680.0,4.728e-05]
[1754779201090,0.2889964,116690.0,116680.0,0.32268956]
[1754779201317,0.4308364,116690.0,116680.0,0.00532728]
[1754779204586,0.2889964,116690.0,116680.0,0.00532728]
[1754779204818,0.4308364,116690.0,116680.0,0.49409854]
[1754779205026,0.25940211,116690.0,116680.0,0.49409854]
[1754779205900,0.4307964,116690.0,116680.0,0.49409854]
[1754779206823,0.4307964,116690.0,116680.0,0.00532728]
[1754779207040,0.491014,116690.0,116680.0,0.32268956]
[1754779207256,0.4307964,116690.0,116680.0,0.32268956]
[1754779209359,0.4307964,116690.0,116680.0,0.00532728]
[1754779209360,0.4327864,116690.0,116680.0,0.00532728]
[1754779209565,0.4307964,116690.0,116680.0,0.00532728]
[1754779215411,0.4327864,116690.0,116680.0,0.00532728]
[1754779217091,0.4327064,116690.0,116680.0,0.00532728]
[1754779217501,0.493412,116690.0,116680.0,0.00532728]
[1754779221872,0.4306364,116690.0,116680.0,0.32268956]
[1754779223972,0.4306364,116690.0,116680.0,0.00532728]
[1754779224258,0.4306364,116690.0,116680.0,0.32268956]
[1754779227032,0.4306364,116690.0,116680.0,0.00532728]
[1754779227236,0.4306364,116690.0,116680.0,0.32268956]
[1754779229307,0.4306364,116690.0,116680.0,0.00532728]
[1754779229546,0.4306364,116690.0,116680.0,0.32268956]
[1754779233972,0.4306364,116690.0,116680.0,0.00532728]
[1754779234191,0.4327364,116690.0,116680.0,0.32268956]
[1754779235481,0.4327364,116690.0,116680.0,0.00532728]
[1754779235701,0.4327364,116690.0,116680.0,0.32268956]
[1754779236689,0.4069964,116690.0,116680.0,0.32268956]
[1754779237542,0.4069964,116690.0,116680.0,0.00532728]
[1754779237775,0.4069964,116690.0,116680.0,0.31945956]
[1754779237988,0.4069964,116690.0,116680.0,0.00209728]
[1754779238138,0.4099864,116690.0,116680.0,4.728e-05]
[1754779249615,0.4099864,116690.0,116680.0,4.728e-05]
[1754779255718,0.4095864,116690.0,116680.0,4.728e-05]
[1754779258937,0.4353244,116690.0,116680.0,4.728e-05]
[1754779265421,0.7753244,116690.0,116680.0,4.728e-05]
[1754779278186,0.7723344,116690.0,116680.0,0.00212728]
[1754779278395,0.7754844,116690.0,116680.0,4.728e-05]
[1754779278632,0.86227865,116690.0,116680.0,4.728e-05]
[1754779279992,0.86227865,116690.0,116680.0,0.00531728]
[1754779279993,0.6289944,116690.0,116680.0,0.00531728]
[1754779280228,0.7699544,116690.0,116680.0,0.00531728]
[1754779282875,0.6289944,116690.0,116680.0,0.00531728]
[1754779283104,0.7699144,116690.0,116680.0,0.00531728]
[1754779284464,0.7719344,116690.0,116680.0,0.00531728]
[1754779284695,0.85872865,116690.0,116680.0,0.00531728]
[1754779285131,0.86187865,116690.0,116680.0,4.728e-05]
[1754779305602,0.85872865,116690.0,116680.0,0.00212728]
[1754779313787,0.85670865,116690.0,116680.0,0.00506728]
[1754779314870,0.7699144,116690.0,116680.0,0.00506728]
[1754779315332,0.7720744,116690.0,116680.0,0.00506728]
[1754779315794,0.7720744,116690.0,116680.0,0.00212728]
[1754779320953,0.7750444,116690.0,116680.0,4.728e-05]
[1754779348634,0.6341244,116690.0,116680.0,4.728e-05]
[1754779348856,0.8547548,116690.0,116680.0,4.728e-05]
[1754779369527,0.8496248,116690.0,116680.0,4.728e-05]
[1754779371480,0.8520848,116690.0,116680.0,4.728e-05]
[1754779391770,0.8510048,116690.0,116680.0,0.00202728]
[1754779396116,0.8510048,116690.0,116680.0,0.00524728]
[1754779397019,0.7682744,116690.0,116680.0,0.00524728]
[1754779406036,0.7704144,116690.0,116680.0,0.00202728]
[1754779407243,0.7704144,116690.0,116680.0,4.728e-05]
[1754779407488,0.6341444,116690.0,116680.0,4.728e-05]
[1754779407722,0.7732644,116690.0,116680.0,4.728e-05]
[1754779407961,0.86005865,116690.0,116680.0,4.728e-05]
[1754779410960,0.7732644,116690.0,116680.0,4.728e-05]
[1754779466118,0.7691744,116690.0,116680.0,0.00543728]
[1754779466723,0.7691744,116690.0,116680.0,0.00219728]
[1754779467593,0.7722144,116690.0,116680.0,4.728e-05]
[1754779522223,0.7722144,116690.0,116650.0,0.0004]
[1754779522224,0.17143637,116670.0,116650.0,0.0004]
[1754779522478,0.39550047,116660.0,116650.0,0.0004]
[1754779522690,0.39550047,116660.0,116650.0,0.00239]
[1754779522896,0.42124247,116660.0,116650.0,0.00239]
[1754779523500,0.42124247,116660.0,116650.0,0.00633]
[1754779524334,0.42124247,116660.0,116650.0,0.00533]
[1754779524536,0.42124247,116660.0,116650.0,0.00633]
[1754779524746,0.42124247,116660.0,116650.0,0.00533]
[1754779524953,0.42124247,116660.0,116650.0,0.00633]
[1754779525799,0.42124247,116660.0,116650.0,0.00733]
[1754779529794,0.48136265,116660.0,116650.0,0.00733]
[1754779530873,0.42124247,116660.0,116650.0,0.00733]
[1754779535608,0.42124247,116660.0,116650.0,0.32469228]
[1754779538495,0.42124247,116660.0,116650.0,0.00733]
[1754779543520,0.42324247,116660.0,116650.0,0.00733]
[1754779546109,0.42324247,116660.0,116650.0,0.32469228]
[1754779546337,0.42324247,116660.0,116650.0,0.00733]
[1754779547019,0.42324247,116660.0,116650.0,0.00439]
[1754779548346,0.42619247,116660.0,116650.0,0.0024]
[1754779551161,0.42324247,116660.0,116650.0,0.32182228]
[1754779551377,0.42324247,116660.0,116650.0,0.00446]
[1754779552014,0.42619247,116660.0,116650.0,0.0024]
[1754779556262,0.48680765,116660.0,116650.0,0.0024]
[1754779556990,0.42619247,116660.0,116650.0,0.0024]
[1754779587808,0.42324247,116660.0,116650.0,0.0024]
[1754779588401,0.42324247,116660.0,116650.0,0.00451]
[1754779593157,0.42632247,116660.0,116650.0,0.00451]
[1754779593362,0.42324247,116660.0,116650.0,0.00451]
[1754779597583,0.42632247,116660.0,116650.0,0.00451]
[1754779598021,0.42324247,116660.0,116650.0,0.00451]
[1754779602673,0.42024247,116660.0,116650.0,0.32490228]
[1754779602843,0.42020247,116660.0,116650.0,0.32490228]
[1754779603276,0.18868775,116660.0,116650.0,0.10744234]
[1754779603578,0.17143836,116660.0,116650.0,0.34339142]
[1754779603721,0.19718036,116660.0,116650.0,0.47955142]
[1754779603928,0.51143836,116660.0,116650.0,0.47955142]
[1754779604130,0.17143836,116660.0,116650.0,0.47955142]
[1754779604329,0.07887321,116660.0,116650.0,0.47955142]
[1754779604534,0.07887321,116660.0,116650.0,0.56634567]
[1754779608417,0.33333637,116670.0,116650.0,0.56634567]
[1754779608604,0.33333637,116670.0,116660.0,0.56382887]
[1754779608811,0.33540637,116670.0,116660.0,0.58429801]
[1754779609436,0.10389343,116670.0,116660.0,0.58429801]
[1754779609679,0.2773298,116670.0,116660.0,0.58738801]
[1754779609883,0.2773298,116670.0,116660.0,0.66846224]
[1754779610113,0.6173298,116670.0,116660.0,0.55139925]
[1754779610320,0.66080463,116670.0,116660.0,0.86876153]
[1754779610479,0.66080463,116670.0,116660.0,0.30493266]
[1754779610680,0.66080463,116670.0,116660.0,0.54122071]
[1754779611358,0.47808,116670.0,116660.0,0.54122071]
[1754779611561,0.64951637,116670.0,116660.0,0.54122071]
[1754779612656,0.30951637,116670.0,116660.0,0.34092142]
[1754779613289,0.24006412,116670.0,116660.0,0.34092142]
[1754779613500,0.26035067,116670.0,116660.0,0.34092142]
[1754779613649,0.26035067,116670.0,116660.0,0.54122071]
[1754779614422,0.60035067,116670.0,116660.0,0.54122071]
[1754779615025,0.60035067,116670.0,116660.0,0.34092142]
[1754779615370,0.60035067,116670.0,116660.0,0.02355914]
[1754779615577,0.37091208,116670.0,116660.0,0.34092142]
[1754779615788,0.54234845,116670.0,116660.0,0.02355914]
[1754779616010,0.54234845,116670.0,116660.0,0.34092142]
[1754779616402,0.30954637,116670.0,116660.0,0.34092142]
[1754779616630,0.30954637,116670.0,116660.0,0.34192142]
[1754779616844,0.30954637,116670.0,116660.0,0.34292142]
[1754779617871,0.30954637,116670.0,116660.0,0.34192142]
[1754779618152,0.30954637,116670.0,116660.0,0.34292142]
[1754779618370,0.26324465,116670.0,116660.0,0.02555914]